bitfinex/quotes_SOLUSD_20241126
["timestamp","ask_amount","ask_price","bid_price","bid_amount"]
[1732609143036,5.12981876,231.5,231.44,27.42361929]
[1732609143630,0.81004618,231.55,231.48,27.42361929]
[1732609143929,0.81004618,231.55,231.38,10.12549]
[1732609143930,27.42361929,231.53,231.44,27.42361929]
[1732609144135,27.42361929,231.51,231.44,27.42361929]
[1732609144434,27.42361929,231.45,231.36,27.42361929]
[1732609144641,27.42361929,231.43,231.36,27.42361929]
[1732609145129,0.8102309,231.5,231.42,27.42361929]
[1732609145329,27.42361929,231.5,231.42,27.42361929]
[1732609145512,4.3202,231.47,231.4,27.42361929]
[1732609145713,0.81016957,231.46,231.4,27.42361929]
[1732609145911,5.13035958,231.47,231.4,27.42361929]
[1732609146115,27.42361929,231.5,231.42,27.42361929]
[1732609146332,4.3199,231.49,231.44,27.42361929]
[1732609146920,0.81003986,231.57,231.47,27.42361929]
[1732609147128,27.42361929,231.61,231.51,27.42361929]
[1732609147312,27.42361929,231.57,231.48,27.42361929]
[1732609147508,10.7926,231.64,231.5,27.42361929]
[1732609147509,31.74171929,231.59,231.5,27.42361929]
[1732609147838,31.74171929,231.59,231.42,10.12549]
[1732609147839,0.80975684,231.58,231.52,27.42361929]
[1732609148016,0.80975684,231.58,231.42,10.12549]
[1732609148017,31.74121929,231.61,231.54,27.42361929]
[1732609148339,27.39856531,231.62,231.54,27.39856531]
[1732609148831,31.71556531,231.64,231.56,27.39856531]
[1732609149137,44.51431205,231.64,231.56,44.51431205]
[1732609149516,44.51431205,231.68,231.61,0.12549]
[1732609149714,44.51431205,231.66,231.58,44.51431205]
[1732609149919,44.51431205,231.64,231.56,44.51431205]
[1732609150138,42.79416258,231.62,231.55,0.12549]
[1732609150547,44.51431205,231.65,231.57,44.51431205]
[1732609151739,44.51431205,231.65,231.49,0.12549]
[1732609152035,44.51431205,231.58,231.5,44.51431205]
[1732609152239,44.51431205,231.6,231.53,44.51431205]
[1732609152613,44.51431205,231.6,231.4,22.2348]
[1732609152614,44.51431205,231.6,231.4,12.2348]
[1732609152842,59.61931205,231.71,231.49,44.51431205]
[1732609152843,44.51431205,231.57,231.49,44.51431205]
[1732609153529,48.83271205,231.57,231.49,44.51431205]
[1732609153828,44.51431205,231.61,231.53,44.51431205]
[1732609155410,44.51431205,231.61,231.55,44.51431205]
[1732609155641,44.51431205,231.61,231.53,44.51431205]
[1732609156224,44.51431205,231.59,231.51,44.51431205]
[1732609156547,44.51431205,231.53,231.45,44.51431205]
[1732609156734,44.51431205,231.54,231.46,44.51431205]
[1732609156932,0.20743367,231.51,231.46,44.51431205]
[1732609157331,0.20743367,231.51,231.45,44.51431205]
[1732609157520,44.72174572,231.51,231.44,44.51431205]
[1732609157720,44.72174572,231.51,231.4,12.2348]
[1732609157721,0.20743367,231.51,231.45,44.51431205]
[1732609157923,44.72174572,231.51,231.44,44.51431205]
[1732609158132,0.20743367,231.51,231.45,44.51431205]
[1732609158635,0.20743367,231.51,231.49,44.51431205]
[1732609158840,0.20743367,231.51,231.47,44.51431205]
[1732609159137,0.20743367,231.51,231.42,10.0]
[1732609159138,0.20743367,231.51,231.46,44.51431205]
[1732609159342,0.20743367,231.51,231.47,44.51431205]
[1732609159542,0.20743367,231.51,231.45,64.51431205]
[1732609159731,0.20743367,231.51,231.46,44.51431205]
[1732609160330,0.20743367,231.51,231.47,44.51431205]
[1732609160525,0.20743367,231.51,231.45,44.51431205]
[1732609161041,44.72174572,231.51,231.43,64.51431205]
[1732609161832,0.20743367,231.51,231.44,44.51431205]
[1732609162527,44.51431205,231.52,231.44,44.51431205]
[1732609162927,44.51431205,231.55,231.48,44.51431205]
[1732609163130,44.51431205,231.56,231.49,44.51431205]
[1732609163350,44.51431205,231.59,231.51,44.51431205]
[1732609163525,44.51431205,231.6,231.53,44.51431205]
[1732609163926,44.51431205,231.59,231.51,44.51431205]
[1732609164122,4.3178,231.6,231.43,20.0]
[1732609164341,44.51431205,231.56,231.48,44.51431205]
[1732609164549,44.51431205,231.55,231.48,44.51431205]
[1732609164746,4.3178,231.6,231.4,12.2348]
[1732609164747,44.51431205,231.5,231.42,44.51431205]
[1732609165055,44.51431205,231.47,231.4,56.74911205]
[1732609165223,44.51431205,231.47,231.4,44.51431205]
[1732609165429,44.51431205,231.45,231.38,4.322]
[1732609165630,15.1174,231.52,231.38,4.322]
[1732609165954,44.51431205,231.43,231.38,4.322]
[1732609166250,44.51431205,231.39,231.38,4.322]
[1732609166562,44.51431205,231.45,231.38,4.322]
[1732609166729,44.51431205,231.45,231.37,4.322]
[1732609167353,44.51431205,231.41,231.37,4.322]
[1732609167648,44.51431205,231.48,231.39,44.51431205]
[1732609168156,48.83431205,231.48,231.39,44.51431205]
[1732609168530,44.51431205,231.46,231.35,0.25098]
[1732609168854,44.51431205,231.46,231.39,44.51431205]
[1732609169532,44.51431205,231.48,231.39,44.51431205]
[1732609170442,44.57022244,231.49,231.41,44.57022244]
[1732609171027,44.57022244,231.47,231.39,44.57022244]
[1732609171945,44.57022244,231.49,231.4,23.902374]
[1732609172153,44.57022244,231.47,231.39,44.57022244]
[1732609172342,27.43984482,231.42,231.35,0.38321]
[1732609172749,27.43984482,231.44,231.36,27.43984482]
[1732609172944,27.43984482,231.46,231.38,27.43984482]
[1732609173651,27.43984482,231.48,231.38,27.43984482]
[1732609173825,27.43984482,231.5,231.42,27.43984482]
[1732609174445,27.43984482,231.52,231.44,27.43984482]
[1732609175049,27.43984482,231.5,231.42,27.43984482]
[1732609176054,27.43984482,231.5,231.35,0.38321]
[1732609176055,27.43984482,231.43,231.35,0.38321]
[1732609177441,27.43984482,231.41,231.35,0.38321]
[1732609177643,27.43984482,231.43,231.35,0.38321]
[1732609177842,27.43984482,231.47,231.38,27.43984482]
[1732609178162,27.43984482,231.47,231.4,27.43984482]
[1732609178639,27.43984482,231.49,231.37,10.0]
[1732609178846,27.43984482,231.49,231.4,27.43984482]
[1732609179237,27.43984482,231.53,231.44,27.43984482]
[1732609179438,27.43984482,231.55,231.48,27.43984482]
[1732609179742,34.4113,231.67,231.39,32.6682]
[1732609179743,27.43984482,231.53,231.46,27.43984482]
[1732609179953,15.1116,231.61,231.39,32.6682]
[1732609179954,27.43984482,231.55,231.48,27.43984482]
[1732609180260,27.43984482,231.51,231.42,27.43984482]
[1732609180431,27.43984482,231.43,231.35,0.38321]
[1732609180739,27.43984482,231.44,231.35,0.38321]
[1732609180941,27.43984482,231.44,231.36,27.43984482]
[1732609181151,27.43984482,231.46,231.36,27.43984482]
[1732609181335,27.43984482,231.46,231.38,27.43984482]
[1732609181660,27.43984482,231.46,231.36,27.43984482]
[1732609182152,27.43984482,231.44,231.36,27.43984482]
[1732609182342,27.43984482,231.44,231.37,0.12549]
[1732609184034,27.43984482,231.44,231.37,0.5087]
[1732609184240,27.43984482,231.42,231.37,0.5087]
[1732609184462,27.43984482,231.4,231.37,0.38321]
[1732609184759,27.43984482,231.38,231.37,0.38321]
[1732609188157,27.43984482,231.4,231.37,0.38321]
[1732609188374,27.43984482,231.4,231.38,0.12549]
[1732609188952,27.43984482,231.41,231.38,0.12549]
[1732609189248,27.43984482,231.39,231.37,0.38321]
[1732609190150,27.43984482,231.38,231.37,0.38321]
[1732609191987,57.43984482,231.38,231.37,0.38321]
[1732609193764,58.25026818,231.38,231.37,0.38321]
[1732609195058,57.43984482,231.38,231.37,0.38321]
[1732609198755,30.0,231.38,231.37,0.38321]
[1732609199053,30.0,231.38,231.37,0.5087]
[1732609200854,57.43984482,231.38,231.37,0.5087]
[1732609201675,30.0,231.38,231.37,0.5087]
[1732609201877,30.0,231.38,231.37,28.07403482]
[1732609202185,30.0,231.38,231.37,0.63419]
[1732609203176,30.0,231.38,231.37,28.07403482]
[1732609203384,0.81022372,231.51,231.41,0.25098]
[1732609203683,0.80987745,231.68,231.51,0.25098]
[1732609203853,4.3166,231.67,231.51,20.55206485]
[1732609204054,0.80952261,231.66,231.53,0.12549]
[1732609204264,0.80952261,231.66,231.49,0.12549]
[1732609204265,27.43984482,231.55,231.49,0.12549]
[1732609204464,27.43984482,231.5,231.44,20.12549]
[1732609204676,27.43984482,231.51,231.46,0.12549]
[1732609204862,27.43984482,231.5,231.46,0.12549]
[1732609205178,10.0,231.65,231.47,0.12549]
[1732609205380,27.43984482,231.51,231.43,27.43984482]
[1732609205582,27.43984482,231.51,231.39,23.776884]
[1732609205583,27.43984482,231.45,231.37,12.88901]
[1732609205751,27.43984482,231.43,231.37,12.88901]
[1732609205951,27.43984482,231.45,231.37,40.32885482]
[1732609206265,28.25008151,231.44,231.37,12.88901]
[1732609206466,27.43984482,231.42,231.37,12.88901]
[1732609206980,27.43984482,231.44,231.38,0.12549]
[1732609207276,27.43984482,231.44,231.37,12.88901]
[1732609207672,0.81018429,231.5,231.42,0.12549]
[1732609207858,41.0385,231.6,231.37,12.88901]
[1732609207859,27.43984482,231.44,231.37,12.88901]
[1732609208180,27.43984482,231.54,231.37,12.88901]
[1732609208181,27.43984482,231.46,231.38,27.43984482]
[1732609208369,27.43984482,231.5,231.44,27.43984482]
[1732609208574,27.43984482,231.56,231.48,27.43984482]
[1732609208753,27.43984482,231.49,231.37,0.38321]
[1732609208958,27.43984482,231.44,231.37,0.38321]
[1732609209269,27.43984482,231.48,231.39,27.43984482]
[1732609209469,27.43984482,231.5,231.41,27.43984482]
[1732609209675,28.24983647,231.57,231.48,27.43984482]
[1732609209860,27.43984482,231.57,231.5,27.43984482]
[1732609210366,0.80970862,231.62,231.54,27.43984482]
[1732609210678,27.43984482,231.63,231.54,27.43984482]
[1732609210876,27.43984482,231.63,231.55,0.12549]
[1732609211178,27.43984482,231.63,231.55,0.25098]
[1732609211371,27.43984482,231.57,231.47,0.12549]
[1732609211559,27.43984482,231.57,231.47,27.56533482]
[1732609211760,0.80975599,231.64,231.55,27.43984482]
[1732609211984,27.43984482,231.64,231.55,27.43984482]
[1732609212280,27.43984482,231.66,231.59,27.43984482]
[1732609212480,27.43984482,231.68,231.61,27.43984482]
[1732609212679,27.43984482,231.68,231.6,0.25098]
[1732609212860,28.24916436,231.72,231.63,27.43984482]
[1732609213065,27.43984482,231.7,231.62,0.25098]
[1732609213263,27.43984482,231.7,231.61,27.43984482]
[1732609213580,27.43984482,231.7,231.6,0.12549]
[1732609213581,27.43984482,231.76,231.68,27.43984482]
[1732609215284,27.43984482,231.74,231.66,27.43984482]
[1732609215782,27.43984482,231.78,231.7,27.43984482]
[1732609216467,10.76993865,231.81,231.74,27.43984482]
[1732609216784,10.76993865,231.81,231.64,0.29958464]
[1732609216785,10.76993865,231.81,231.76,27.43984482]
[1732609217083,40.2439,231.95,231.66,0.12549]
[1732609217084,27.43984482,231.9,231.8,27.43984482]
[1732609217282,27.43984482,231.9,231.82,27.43984482]
[1732609217489,27.43984482,231.93,231.86,27.43984482]
[1732609217784,27.43984482,231.95,231.88,27.43984482]
[1732609217957,27.43984482,231.97,231.9,27.43984482]
[1732609218573,0.1140188,231.99,231.92,27.43984482]
[1732609218771,27.43984482,231.97,231.9,27.43984482]
[1732609219191,0.1140188,231.99,231.9,27.43984482]
[1732609219370,0.1140188,231.99,231.94,27.43984482]
[1732609219772,0.1140188,231.99,231.98,27.43984482]
[1732609220989,0.1140188,231.99,231.94,40.38264482]
[1732609221163,27.55386362,231.99,231.94,12.9428]
[1732609221363,0.1140188,231.99,231.94,12.9428]
[1732609221561,27.55386362,231.99,231.94,12.9428]
[1732609221781,0.1140188,231.99,231.94,12.9428]
[1732609222161,0.1140188,231.99,231.94,40.38264482]
[1732609222369,0.1140188,231.99,231.96,27.43984482]
[1732609222965,0.1140188,231.99,231.98,27.56533482]
[1732609223691,17.248696,232.21,231.98,27.56533482]
[1732609223692,27.43984482,232.14,232.02,20.0]
[1732609223894,27.43984482,232.16,232.07,27.43984482]
[1732609224197,27.43984482,232.18,232.1,27.43984482]
[1732609224686,27.43984482,232.19,232.1,27.43984482]
[1732609224897,27.43984482,232.21,232.14,27.43984482]
[1732609225089,0.4972288,232.22,232.05,27.56533482]
[1732609225090,27.43984482,232.19,232.05,10.12549]
[1732609225269,27.43984482,232.13,231.95,10.0]
[1732609225467,27.43984482,232.11,232.02,27.43984482]
[1732609225672,0.80779191,232.1,231.94,12.9428]
[1732609225969,27.43984482,231.97,231.94,12.9428]
[1732609226395,27.43984482,231.95,231.87,27.43984482]
[1732609226692,27.43984482,231.97,231.89,27.43984482]
[1732609226894,27.43984482,231.92,231.84,32.8998]
[1732609227384,27.43984482,231.92,231.85,27.43984482]
[1732609227696,27.43984482,231.86,231.82,12.9428]
[1732609227887,27.43984482,231.86,231.78,27.43984482]
[1732609228088,27.43984482,231.88,231.8,27.43984482]
[1732609228297,0.12549,232.01,231.75,32.8998]
[1732609228298,27.34347581,231.86,231.77,27.34347581]
[1732609228479,27.34347581,231.88,231.79,27.34347581]
[1732609228878,27.34347581,231.94,231.85,27.34347581]
[1732609229192,27.34347581,231.92,231.85,27.34347581]
[1732609229395,27.34347581,231.95,231.87,27.34347581]
[1732609229580,27.34347581,231.91,231.83,27.34347581]
[1732609229783,27.34347581,231.89,231.81,27.34347581]
[1732609229974,27.34347581,231.95,231.87,27.34347581]
[1732609230176,27.34347581,231.93,231.85,27.34347581]
[1732609230504,44.40515829,231.91,231.83,44.40515829]
[1732609230694,44.40515829,231.92,231.85,44.40515829]
[1732609230879,4.3104,232.0,231.84,44.40515829]
[1732609231195,44.40515829,231.92,231.84,44.40515829]
[1732609231389,0.80853973,231.91,231.84,44.40515829]
[1732609231576,44.40515829,231.88,231.78,44.40515829]
[1732609231777,44.40515829,231.86,231.78,45.39131511]
[1732609231972,44.40515829,231.86,231.79,0.98611427]
[1732609232178,44.40515829,231.84,231.79,0.98611427]
[1732609232498,44.40515829,231.82,231.79,0.98611427]
[1732609232798,44.40515829,231.84,231.79,0.98611427]
[1732609233201,44.40515829,231.86,231.79,0.98611427]
[1732609233880,0.80872097,231.94,231.79,0.98611427]
[1732609234081,44.40515829,231.86,231.79,0.98611427]
[1732609234280,44.40515829,231.86,231.78,44.40515829]
[1732609234490,4.3119,231.92,231.8,44.40515829]
[1732609234491,44.40515829,231.88,231.8,44.40515829]
[1732609235075,44.40515829,231.92,231.84,44.40515829]
[1732609235407,44.40515829,231.9,231.82,44.40515829]
[1732609235587,44.40515829,231.92,231.82,44.40515829]
[1732609235898,44.40515829,231.92,231.84,44.40515829]
[1732609236104,4.3107,231.98,231.88,44.40515829]
[1732609236105,44.40515829,231.96,231.88,44.40515829]
[1732609236407,44.40515829,231.91,231.82,44.40515829]
[1732609236577,44.40515829,231.89,231.82,44.40515829]
[1732609236783,44.40515829,231.93,231.86,44.40515829]
[1732609237086,44.40515829,231.95,231.86,44.40515829]
[1732609237487,33.04009944,231.95,231.84,20.12549]
[1732609237683,33.04009944,231.95,231.87,44.40515829]
[1732609238409,44.40515829,231.97,231.89,44.40515829]
[1732609238591,44.40515829,231.97,231.9,44.40515829]
[1732609238906,44.40515829,232.03,231.94,44.40515829]
[1732609239110,44.40515829,232.03,231.86,10.0]
[1732609239111,44.40515829,232.05,231.98,44.40515829]
[1732609239604,44.40515829,232.07,231.98,44.40515829]
[1732609239918,44.40515829,232.11,232.04,44.40515829]
[1732609240101,44.40515829,232.09,232.02,44.40515829]
[1732609240287,44.40515829,232.05,231.98,44.40515829]
[1732609240609,44.40515829,232.05,231.96,44.40515829]
[1732609240908,44.40515829,232.01,231.92,44.40515829]
[1732609241202,15.0798,232.1,231.91,12.4214]
[1732609241203,44.40515829,232.03,231.96,44.40515829]
[1732609241598,44.40515829,232.03,231.94,44.40515829]
[1732609241796,44.40515829,232.03,231.96,44.40515829]
[1732609241993,44.40515829,232.03,231.94,44.40515829]
[1732609242300,44.40515829,231.99,231.92,44.40515829]
[1732609242605,44.40515829,231.97,231.88,44.40515829]
[1732609242793,0.80833216,232.04,231.96,44.40515829]
[1732609243108,44.40515829,232.05,231.98,44.40515829]
[1732609243307,44.40515829,232.05,231.96,44.40515829]
[1732609243488,44.40515829,232.03,231.86,10.0]
[1732609243690,0.80819317,232.02,231.93,44.40515829]
[1732609244004,44.40515829,232.03,231.95,44.40515829]
[1732609245588,44.40515829,232.05,231.97,44.40515829]
[1732609246019,44.40515829,232.05,231.95,44.40515829]
[1732609246306,44.40515829,232.03,231.95,44.40515829]
[1732609246492,44.40515829,231.99,231.89,44.40515829]
[1732609246814,10.0,232.06,231.84,31.9445]
[1732609246815,44.40515829,232.01,231.93,44.40515829]
[1732609246988,44.40515829,232.03,231.95,44.40515829]
[1732609247186,0.80822354,232.07,231.99,44.40515829]
[1732609247187,45.21338183,232.07,231.99,44.40515829]
[1732609247399,54.90238709,232.22,232.01,57.62615829]
[1732609247400,44.40515829,232.1,232.01,57.62615829]
[1732609247592,0.80799719,232.15,232.01,57.62615829]
[1732609247593,44.40515829,232.12,232.03,44.40515829]
[1732609247803,44.40515829,232.14,232.05,44.40515829]
[1732609248313,44.40515829,232.18,232.11,44.40515829]
[1732609248609,0.80768222,232.17,232.11,44.40515829]
[1732609248916,44.40515829,232.2,232.11,44.40515829]
[1732609249519,44.90238709,232.22,232.13,44.40515829]
[1732609249727,44.40515829,232.2,232.13,44.40515829]
[1732609249889,44.40515829,232.15,232.05,44.40515829]
[1732609250210,44.40515829,232.15,232.07,44.40515829]
[1732609250405,44.31918341,232.18,232.1,44.31918341]
[1732609250607,44.31918341,232.14,232.06,44.31918341]
[1732609250793,44.31918341,232.08,232.01,44.31918341]
[1732609251124,44.31918341,232.08,231.85,22.91]
[1732609251125,44.31918341,232.02,231.85,17.543]
[1732609251292,0.80823843,232.01,231.89,44.31918341]
[1732609251591,10.0,232.09,231.87,44.31918341]
[1732609251592,44.31918341,231.96,231.87,44.31918341]
[1732609251791,10.0,232.09,231.71,10.0]
[1732609251792,44.31918341,231.9,231.81,44.31918341]
[1732609251993,44.31918341,231.85,231.77,44.31918341]
[1732609252301,27.33472385,231.9,231.82,27.33472385]
[1732609252501,27.33472385,231.94,231.84,27.33472385]
[1732609252710,27.33472385,231.94,231.76,13.5195501]
[1732609252711,27.33472385,231.89,231.76,13.221]
[1732609252897,27.33472385,231.93,231.83,27.33472385]
[1732609253105,27.33472385,231.93,231.85,27.33472385]
[1732609253308,27.33472385,231.91,231.83,27.33472385]
[1732609253813,27.33472385,231.93,231.85,27.33472385]
[1732609254195,44.40611731,231.93,231.85,44.40611731]
[1732609254895,44.40611731,231.93,231.83,44.40611731]
[1732609255104,44.40611731,231.91,231.81,44.40611731]
[1732609255319,44.40611731,231.93,231.85,44.40611731]
[1732609255919,44.40611731,231.87,231.77,44.40611731]
[1732609256227,44.40611731,231.82,231.76,13.221]
[1732609256722,44.40611731,231.84,231.76,13.221]
[1732609257503,44.40611731,231.8,231.71,44.40611731]
[1732609258230,44.40611731,231.72,231.69,5.67929934]
[1732609258917,44.40611731,231.74,231.69,5.67929934]
[1732609259123,44.40611731,231.8,231.71,44.40611731]
[1732609260503,44.40611731,231.81,231.73,44.40611731]
[1732609260706,44.40611731,231.79,231.71,44.40611731]
[1732609261709,44.40611731,231.76,231.69,5.67929934]
[1732609261910,44.40611731,231.71,231.69,5.67929934]
[1732609262222,4.3133,231.84,231.69,5.67929934]
[1732609262223,44.40611731,231.73,231.69,5.67929934]
[1732609262522,44.40611731,231.71,231.69,5.67929934]
[1732609262822,30.0,231.67,231.5,12.1259]
[1732609263009,44.40611731,231.54,231.47,30.2476]
[1732609263325,44.40611731,231.56,231.48,44.40611731]
[1732609263700,44.40611731,231.58,231.5,44.40611731]
[1732609263897,44.40611731,231.52,231.44,44.40611731]
[1732609264608,44.40611731,231.54,231.46,44.40611731]
[1732609264813,0.80991387,231.53,231.46,44.40611731]
[1732609265197,0.80991387,231.53,231.48,44.40611731]
[1732609265522,0.80991459,231.55,231.46,44.40611731]
[1732609265730,44.40611731,231.54,231.46,44.40611731]
[1732609265915,44.40611731,231.52,231.42,57.02924611]
[1732609266118,44.40611731,231.48,231.42,0.4972288]
[1732609266311,22.38,231.45,231.42,0.4972288]
[1732609267512,22.38,231.44,231.42,0.4972288]
[1732609268100,22.38,231.44,231.42,44.90334611]
[1732609268328,48.72471731,231.56,231.42,44.90334611]
[1732609268528,0.80988817,231.55,231.47,44.40611731]
[1732609268709,66.78611731,231.48,231.42,0.4972288]
[1732609268913,44.40611731,231.46,231.42,0.4972288]
[1732609269120,22.38,231.48,231.42,0.4972288]
[1732609269121,44.40611731,231.44,231.42,0.4972288]
[1732609269423,0.81034918,231.43,231.42,0.4972288]
[1732609269603,44.40611731,231.44,231.42,0.4972288]
[1732609269799,44.40611731,231.46,231.42,0.4972288]
[1732609270020,44.40611731,231.44,231.42,0.4972288]
[1732609270428,0.81029396,231.49,231.42,0.4972288]
[1732609270429,44.40611731,231.46,231.42,0.4972288]
[1732609270609,44.40611731,231.48,231.42,0.4972288]
[1732609270812,45.21621182,231.54,231.47,44.40611731]
[1732609271013,44.40611731,231.54,231.45,44.40611731]
[1732609271227,44.40611731,231.52,231.45,44.40611731]
[1732609271726,44.40611731,231.52,231.43,44.40611731]
[1732609271909,44.40611731,231.52,231.45,44.40611731]
[1732609272109,44.40611731,231.46,231.42,0.4972288]
[1732609272413,44.40611731,231.43,231.42,0.4972288]
[1732609272735,69.11895212,231.43,231.42,0.4972288]
[1732609272935,0.12549,231.37,231.33,20.43853415]
[1732609273230,78.99346212,231.43,231.33,20.43853415]
[1732609273231,44.40611731,231.38,231.33,20.43853415]
[1732609273408,0.81075251,231.4,231.33,20.43853415]
[1732609273409,44.40611731,231.4,231.33,20.43853415]
[1732609273609,44.40611731,231.38,231.33,20.43853415]
[1732609274232,0.81043136,231.41,231.35,44.40611731]
[1732609274436,22.38,231.44,231.4,44.40611731]
[1732609274732,44.40611731,231.41,231.33,20.43853415]
[1732609274932,44.40611731,231.39,231.33,20.43853415]
[1732609275123,44.40611731,231.37,231.33,20.43853415]
[1732609275933,0.81050527,231.36,231.33,20.43853415]
[1732609276137,44.40611731,231.35,231.33,20.43853415]
[1732609276825,0.81053342,231.34,231.33,20.43853415]
[1732609280131,45.21655561,231.43,231.34,23.776884]
[1732609280518,49.53755561,231.43,231.34,23.776884]
[1732609280717,44.40611731,231.41,231.34,23.776884]
[1732609280934,44.40611731,231.39,231.34,23.776884]
[1732609281138,44.40611731,231.35,231.33,20.43853415]
[1732609281314,5.1332733,231.34,231.33,20.43853415]
[1732609283011,49.53939061,231.34,231.33,20.43853415]
[1732609286244,59.53939061,231.34,231.33,20.43853415]
[1732609286420,69.53939061,231.34,231.33,20.43853415]
[1732609286627,49.53939061,231.34,231.33,20.43853415]
[1732609287137,49.53939061,231.34,231.19,0.4972288]
[1732609287138,10.0,231.33,231.19,0.4972288]
[1732609287328,0.81095795,231.32,231.19,0.4972288]
[1732609288048,11.12545795,231.32,231.19,0.4972288]
[1732609288341,44.40611731,231.25,231.19,0.4972288]
[1732609288543,0.81095256,231.24,231.19,0.4972288]
[1732609288741,0.8109619,231.25,231.19,0.4972288]
[1732609288937,0.8109619,231.25,231.2,44.40611731]
[1732609289233,44.40611731,231.24,231.19,0.4972288]
[1732609289424,44.40611731,231.25,231.19,0.4972288]
[1732609289624,44.40611731,231.27,231.21,23.776884]
[1732609289826,44.40611731,231.28,231.21,23.776884]
[1732609290129,45.21691313,231.27,231.21,23.776884]
[1732609290350,44.40611731,231.37,231.21,23.776884]
[1732609290351,44.40611731,231.3,231.23,44.40611731]
[1732609290643,0.81082584,231.35,231.19,0.4972288]
[1732609290644,44.40611731,231.29,231.25,23.776884]
[1732609290948,44.40611731,231.27,231.25,23.776884]
[1732609291146,0.81086961,231.26,231.19,0.4972288]
[1732609291351,44.40611731,231.25,231.19,0.4972288]
[1732609291530,45.2171159,231.24,231.19,0.4972288]
[1732609293132,44.40611731,231.22,231.19,0.4972288]
[1732609293428,0.81109501,231.21,231.19,0.4972288]
[1732609293632,44.40611731,231.25,231.19,0.4972288]
[1732609293845,44.40611731,231.22,231.19,0.4972288]
[1732609294045,44.40611731,231.26,231.19,0.4972288]
[1732609294237,44.40611731,231.22,231.19,0.4972288]
[1732609294661,44.40611731,231.24,231.19,0.4972288]
[1732609294854,15.1317,231.3,231.19,0.4972288]
[1732609294855,0.81102538,231.23,231.19,0.4972288]
[1732609295153,44.40611731,231.23,231.19,0.4972288]
[1732609295452,0.81105934,231.22,231.19,0.4972288]
[1732609295651,44.40611731,231.23,231.19,0.4972288]
[1732609295950,44.40611731,231.21,231.19,0.4972288]
[1732609296126,0.81117376,231.2,231.19,0.4972288]
[1732609296327,45.50453037,231.2,231.19,0.4972288]
[1732609297133,32.6374857,231.2,231.19,0.4972288]
[1732609297644,28.3122857,231.2,231.19,0.4972288]
[1732609297953,0.81117376,231.2,231.19,0.4972288]
[1732609298255,27.50111194,231.2,231.19,0.4972288]
[1732609298453,27.50235886,231.2,231.19,0.4972288]
[1732609298636,27.50235886,231.24,231.19,0.4972288]
[1732609298833,28.31337441,231.23,231.19,0.4972288]
[1732609299047,27.50235886,231.23,231.19,0.4972288]
[1732609299746,0.8109674,231.33,231.19,0.4972288]
[1732609299747,44.67931234,231.22,231.19,0.4972288]
[1732609299928,44.67931234,231.2,231.19,0.4972288]
[1732609300438,44.67931234,231.22,231.19,0.4972288]
[1732609300664,44.67931234,231.24,231.19,0.4972288]
[1732609301159,44.67931234,231.24,231.19,24.2741128]
[1732609301329,44.67931234,231.25,231.19,0.4972288]
[1732609301754,44.67931234,231.29,231.22,57.72799234]
[1732609301972,10.78802168,231.39,231.22,57.72799234]
[1732609301973,44.67931234,231.3,231.25,23.776884]
[1732609302331,44.67931234,231.3,231.23,23.776884]
[1732609302538,44.67931234,231.3,231.24,0.12549]
[1732609303158,44.67931234,231.3,231.23,23.776884]
[1732609303460,44.67931234,231.29,231.23,23.776884]
[1732609303756,44.67931234,231.25,231.22,12.7977]
[1732609304557,44.67931234,231.27,231.22,12.7977]
[1732609304855,44.67931234,231.25,231.22,12.7977]
[1732609305041,44.67931234,231.25,231.23,23.776884]
[1732609305243,44.67931234,231.27,231.23,23.776884]
[1732609305432,44.67931234,231.29,231.23,23.776884]
[1732609305633,44.67931234,231.28,231.23,23.776884]
[1732609305933,44.67931234,231.24,231.22,12.7977]
[1732609306134,44.67931234,231.25,231.22,12.7977]
[1732609306436,44.67931234,231.26,231.22,12.7977]
[1732609307253,44.67931234,231.26,231.19,0.4972288]
[1732609307458,44.67931234,231.24,231.19,0.4972288]
[1732609307758,44.67931234,231.26,231.19,45.17654114]
[1732609308134,44.67931234,231.27,231.19,45.17654114]
[1732609308335,44.67931234,231.23,231.19,0.4972288]
[1732609308662,44.67931234,231.25,231.19,0.4972288]
[1732609308836,44.67931234,231.26,231.19,0.4972288]
[1732609309037,45.49021097,231.25,231.19,0.4972288]
[1732609309561,44.67931234,231.25,231.19,0.4972288]
[1732609310456,44.67931234,231.23,231.19,0.4972288]
[1732609310665,0.81088642,231.24,231.19,0.4972288]
[1732609310666,44.67931234,231.21,231.19,0.4972288]
[1732609311234,0.81106089,231.2,231.19,0.4972288]
[1732609311559,44.67931234,231.21,231.19,0.4972288]
[1732609312258,0.81100326,231.2,231.19,0.4972288]
[1732609312966,44.67931234,231.21,231.19,0.4972288]
[1732609313356,44.67931234,231.23,231.19,0.4972288]
[1732609313856,44.67931234,231.21,231.19,0.4972288]
[1732609314048,0.81102043,231.2,231.19,0.4972288]